[Event "Titled Tuesday Blitz April 12 Late 2022"]
[White "Iskusnyh, Sergei"]
[Black "Pakleza, Zbigniew"]
[WhiteFideId "4120027"]
[BlackFideId "1119290"]
[WhiteElo "2492"]
[BlackElo "2467"]
[Result "0-1"]
[Round "10"]
[TimeControl "180+1"]
[Date "2022.04.12"]
[WhiteClock "0:00:11"]
[BlackClock "0:00:09"]

1. d4 {[%clk 0:03:00]}  d5 {[%clk 0:02:56]} 2. c4 {[%clk 0:03:00]}  c6 {[%clk 0:02:56]} 3. Nf3 {[%clk 0:03:00]}  Nf6 {[%clk 0:02:56]} 4. Qb3 {[%clk 0:03:00]}  Qb6 {[%clk 0:02:55]} 5. Nc3 {[%clk 0:02:49]}  Bf5 {[%clk 0:02:41]} 6. g3 {[%clk 0:02:47]}  e6 {[%clk 0:02:41]} 7. Bg2 {[%clk 0:02:43]}  Nbd7 {[%clk 0:02:40]} 8. O-O {[%clk 0:02:41]}  Be7 {[%clk 0:02:41]} 9. Nh4 {[%clk 0:02:39]}  Qxb3 {[%clk 0:02:40]} 10. axb3 {[%clk 0:02:36]}  Bc2 {[%clk 0:02:41]} 11. cxd5 {[%clk 0:01:38]}  Nxd5 {[%clk 0:02:38]} 12. e4 {[%clk 0:01:34]}  Nb4 {[%clk 0:02:24]} 13. d5 {[%clk 0:01:32]}  Bxb3 {[%clk 0:02:23]} 14. dxe6 {[%clk 0:01:25]}  Bxe6 {[%clk 0:02:22]} 15. Nf5 {[%clk 0:01:25]}  Bxf5 {[%clk 0:02:18]} 16. exf5 {[%clk 0:01:25]}  O-O {[%clk 0:02:16]} 17. Rd1 {[%clk 0:01:21]}  Nc5 {[%clk 0:02:03]} 18. Bf1 {[%clk 0:01:15]}  Nb3 {[%clk 0:01:53]} 19. Rb1 {[%clk 0:01:13]}  Nxc1 {[%clk 0:01:51]} 20. Rbxc1 {[%clk 0:01:14]}  Rfd8 {[%clk 0:01:49]} 21. Ne4 {[%clk 0:01:09]}  Kf8 {[%clk 0:01:41]} 22. h4 {[%clk 0:01:06]}  Rxd1 {[%clk 0:01:21]} 23. Rxd1 {[%clk 0:01:06]}  Rd8 {[%clk 0:01:22]} 24. Ra1 {[%clk 0:01:05]}  a6 {[%clk 0:01:18]} 25. Kg2 {[%clk 0:01:04]}  Nd3 {[%clk 0:01:06]} 26. b3 {[%clk 0:00:42]}  Nc5 {[%clk 0:01:02]} 27. Nxc5 {[%clk 0:00:36]}  Bxc5 {[%clk 0:01:03]} 28. Ra2 {[%clk 0:00:34]}  Rd5 {[%clk 0:00:57]} 29. f6 {[%clk 0:00:23]}  gxf6 {[%clk 0:00:52]} 30. Bc4 {[%clk 0:00:23]}  Rd4 {[%clk 0:00:47]} 31. Rc2 {[%clk 0:00:20]}  Bb4 {[%clk 0:00:43]} 32. Be2 {[%clk 0:00:18]}  h6 {[%clk 0:00:40]} 33. Rc4 {[%clk 0:00:16]}  Rxc4 {[%clk 0:00:39]} 34. Bxc4 {[%clk 0:00:16]}  b5 {[%clk 0:00:37]} 35. Be2 {[%clk 0:00:15]}  Ke7 {[%clk 0:00:38]} 36. Kf3 {[%clk 0:00:15]}  Kd6 {[%clk 0:00:36]} 37. Ke4 {[%clk 0:00:14]}  Be1 {[%clk 0:00:36]} 38. f3 {[%clk 0:00:14]}  Bxg3 {[%clk 0:00:35]} 39. h5 {[%clk 0:00:14]}  Kc5 {[%clk 0:00:33]} 40. Kd3 {[%clk 0:00:15]}  Be5 {[%clk 0:00:25]} 41. Bf1 {[%clk 0:00:14]}  a5 {[%clk 0:00:24]} 42. Bh3 {[%clk 0:00:14]}  a4 {[%clk 0:00:21]} 43. bxa4 {[%clk 0:00:13]}  bxa4 {[%clk 0:00:22]} 44. Kc2 {[%clk 0:00:14]}  a3 {[%clk 0:00:19]} 45. Kb3 {[%clk 0:00:13]}  Bb2 {[%clk 0:00:19]} 46. Bd7 {[%clk 0:00:13]}  Kd5 {[%clk 0:00:13]} 47. Be8 {[%clk 0:00:13]}  c5 {[%clk 0:00:13]} 48. Bxf7+ {[%clk 0:00:14]}  Kd4 {[%clk 0:00:14]} 49. Bc4 {[%clk 0:00:12]}  a2 {[%clk 0:00:10]} 50. Kxa2 {[%clk 0:00:09]}  Kxc4 {[%clk 0:00:11]} 51. Kxb2 {[%clk 0:00:10]}  Kd3 {[%clk 0:00:11]} 52. f4 {[%clk 0:00:09]}  c4 {[%clk 0:00:08]} 53. Kc1 {[%clk 0:00:09]}  f5 {[%clk 0:00:06]} 54. Kd1 {[%clk 0:00:09]}  Ke3 {[%clk 0:00:07]} 55. Kc2 {[%clk 0:00:09]}  Kxf4 {[%clk 0:00:07]} 56. Kc3 {[%clk 0:00:10]}  Kg3 {[%clk 0:00:08]} 57. Kxc4 {[%clk 0:00:11]}  f4 {[%clk 0:00:09]} 0-1


[Site "https://www.chess.com"]

[Event "Titled Tuesday Blitz April 12 Late 2022"]
[White "Janturin, Artur"]
[Black "Simonovic, Miroslav"]
[WhiteFideId "4130022"]
[BlackFideId "919152"]
[WhiteElo "2371"]
[BlackElo "2043"]
[Result "0-1"]
[Round "10"]
[TimeControl "180+1"]
[Date "2022.04.13"]
[WhiteClock "0:02:11"]
[BlackClock "0:01:41"]

1. b3 {[%clk 0:02:59]}  c5 {[%clk 0:03:00]} 2. Bb2 {[%clk 0:02:59]}  Nc6 {[%clk 0:03:00]} 3. e3 {[%clk 0:02:59]}  d6 {[%clk 0:03:01]} 4. Nf3 {[%clk 0:02:58]}  e5 {[%clk 0:03:01]} 5. d4 {[%clk 0:02:58]}  cxd4 {[%clk 0:03:01]} 6. exd4 {[%clk 0:02:59]}  e4 {[%clk 0:03:02]} 7. d5 {[%clk 0:03:00]}  exf3 {[%clk 0:03:01]} 8. dxc6 {[%clk 0:03:00]}  Qe7+ {[%clk 0:02:55]} 9. Kd2 {[%clk 0:02:59]}  Qg5+ {[%clk 0:02:46]} 10. Ke1 {[%clk 0:02:34]}  fxg2 {[%clk 0:02:44]} 11. Qe2+ {[%clk 0:02:28]}  Be7 {[%clk 0:02:16]} 12. cxb7 {[%clk 0:02:26]}  gxh1=Q {[%clk 0:02:12]} 13. Qb5+ {[%clk 0:02:21]}  Bd7 {[%clk 0:01:46]} 14. b8=Q+ {[%clk 0:02:16]}  Rxb8 {[%clk 0:01:46]} 15. Qxb8+ {[%clk 0:02:17]}  Bd8 {[%clk 0:01:46]} 16. Nc3 {[%clk 0:02:14]}  Nf6 {[%clk 0:01:41]} 17. Qxd6 {[%clk 0:02:11]} 0-1


[Site "https://www.chess.com"]

[Event "Titled Tuesday Blitz April 12 Late 2022"]
[White "Kanyamarala, Tarun"]
[Black "De Souza, Cristiano Gomes"]
[WhiteFideId "45004714"]
[BlackFideId "2151758"]
[WhiteElo "2177"]
[BlackElo "2068"]
[Result "1-0"]
[Round "10"]
[TimeControl "180+1"]
[Date "2022.04.13"]
[WhiteClock "0:00:10"]
[BlackClock "0:01:07"]

1. d4 {[%clk 0:03:00]}  Nf6 {[%clk 0:02:59]} 2. c4 {[%clk 0:03:01]}  g6 {[%clk 0:02:59]} 3. g3 {[%clk 0:03:01]}  Bg7 {[%clk 0:02:58]} 4. Bg2 {[%clk 0:03:02]}  O-O {[%clk 0:02:59]} 5. Nc3 {[%clk 0:03:01]}  d6 {[%clk 0:02:59]} 6. Nf3 {[%clk 0:03:01]}  Nc6 {[%clk 0:02:59]} 7. O-O {[%clk 0:03:01]}  Bf5 {[%clk 0:02:59]} 8. d5 {[%clk 0:03:00]}  Na5 {[%clk 0:02:57]} 9. Nd4 {[%clk 0:03:00]}  Bd7 {[%clk 0:02:52]} 10. Qd3 {[%clk 0:02:57]}  c5 {[%clk 0:02:51]} 11. dxc6 {[%clk 0:02:56]}  Nxc6 {[%clk 0:02:49]} 12. b3 {[%clk 0:02:49]}  Rc8 {[%clk 0:02:49]} 13. Bb2 {[%clk 0:02:49]}  Nxd4 {[%clk 0:02:48]} 14. Qxd4 {[%clk 0:02:49]}  Ng4 {[%clk 0:02:47]} 15. Qxa7 {[%clk 0:02:45]}  Ne5 {[%clk 0:02:46]} 16. Rad1 {[%clk 0:02:28]}  Ra8 {[%clk 0:02:41]} 17. Qe3 {[%clk 0:02:21]}  Rb8 {[%clk 0:02:39]} 18. Qd2 {[%clk 0:02:16]}  b5 {[%clk 0:02:35]} 19. Nxb5 {[%clk 0:02:15]}  Bxb5 {[%clk 0:02:33]} 20. cxb5 {[%clk 0:02:15]}  Rxb5 {[%clk 0:02:31]} 21. h3 {[%clk 0:02:13]}  Qb6 {[%clk 0:02:29]} 22. Kh2 {[%clk 0:02:12]}  h5 {[%clk 0:02:26]} 23. Bd4 {[%clk 0:02:06]}  Qa5 {[%clk 0:02:21]} 24. Qxa5 {[%clk 0:01:57]}  Rxa5 {[%clk 0:02:20]} 25. a4 {[%clk 0:01:54]}  Rb8 {[%clk 0:02:18]} 26. Rb1 {[%clk 0:01:43]}  Nf3+ {[%clk 0:02:15]} 27. Bxf3 {[%clk 0:01:42]}  Bxd4 {[%clk 0:02:13]} 28. Bc6 {[%clk 0:01:40]}  Rc5 {[%clk 0:02:11]} 29. Bb5 {[%clk 0:01:39]}  Rc2 {[%clk 0:02:10]} 30. Kg1 {[%clk 0:01:30]}  Kg7 {[%clk 0:02:09]} 31. Rfc1 {[%clk 0:01:28]}  Rbc8 {[%clk 0:02:08]} 32. Rxc2 {[%clk 0:01:28]}  Rxc2 {[%clk 0:02:08]} 33. a5 {[%clk 0:01:28]}  Ra2 {[%clk 0:02:04]} 34. b4 {[%clk 0:01:27]}  Bc3 {[%clk 0:01:48]} 35. Bc4 {[%clk 0:01:21]}  Ra3 {[%clk 0:01:47]} 36. a6 {[%clk 0:01:16]}  e6 {[%clk 0:01:44]} 37. b5 {[%clk 0:01:15]}  d5 {[%clk 0:01:43]} 38. Bd3 {[%clk 0:01:08]}  e5 {[%clk 0:01:29]} 39. e3 {[%clk 0:00:36]}  e4 {[%clk 0:01:29]} 40. Bf1 {[%clk 0:00:35]}  d4 {[%clk 0:01:29]} 41. b6 {[%clk 0:00:30]}  dxe3 {[%clk 0:01:27]} 42. b7 {[%clk 0:00:30]}  exf2+ {[%clk 0:01:26]} 43. Kxf2 {[%clk 0:00:27]}  Bd4+ {[%clk 0:01:26]} 44. Kg2 {[%clk 0:00:24]}  Be5 {[%clk 0:01:19]} 45. b8=Q {[%clk 0:00:21]}  Rxg3+ {[%clk 0:01:17]} 46. Kf2 {[%clk 0:00:17]}  Bxb8 {[%clk 0:01:16]} 47. Rxb8 {[%clk 0:00:17]}  Ra3 {[%clk 0:01:14]} 48. Rb7 {[%clk 0:00:17]}  Kh6 {[%clk 0:01:13]} 49. h4 {[%clk 0:00:15]}  f5 {[%clk 0:01:12]} 50. a7 {[%clk 0:00:14]}  f4 {[%clk 0:01:11]} 51. Bc4 {[%clk 0:00:11]}  g5 {[%clk 0:01:09]} 52. Rb6+ {[%clk 0:00:10]}  Kg7 {[%clk 0:01:09]} 53. Ra6 {[%clk 0:00:11]}  Rxa6 {[%clk 0:01:09]} 54. Bxa6 {[%clk 0:00:11]}  gxh4 {[%clk 0:01:09]} 55. a8=Q {[%clk 0:00:11]}  Kf6 {[%clk 0:01:09]} 56. Qxe4 {[%clk 0:00:11]}  Kg5 {[%clk 0:01:10]} 57. Kf3 {[%clk 0:00:11]}  h3 {[%clk 0:01:10]} 58. Qxf4+ {[%clk 0:00:12]}  Kg6 {[%clk 0:01:10]} 59. Bd3+ {[%clk 0:00:12]}  Kg7 {[%clk 0:01:10]} 60. Qg5+ {[%clk 0:00:13]}  Kf7 {[%clk 0:01:10]} 61. Bc4+ {[%clk 0:00:13]}  Ke8 {[%clk 0:01:10]} 62. Qg7 {[%clk 0:00:12]}  h2 {[%clk 0:01:09]} 63. Bb5+ {[%clk 0:00:10]}  Kd8 {[%clk 0:01:07]} 64. Qd7# {[%clk 0:00:10]} 1-0


[Site "https://www.chess.com"]

[Event "Titled Tuesday Blitz April 12 Late 2022"]
[White "Kosteniuk, Alexandra"]
[Black "Demchenko, Anton"]
[WhiteFideId "4128125"]
[BlackFideId "4160258"]
[WhiteElo "2469"]
[BlackElo "2539"]
[Result "1/2-1/2"]
[Round "10"]
[TimeControl "180+1"]
[Date "2022.04.12"]
[WhiteClock "0:00:08"]
[BlackClock "0:00:04"]

1. e4 {[%clk 0:03:00]}  e5 {[%clk 0:03:00]} 2. Nf3 {[%clk 0:03:01]}  Nc6 {[%clk 0:03:01]} 3. Bc4 {[%clk 0:03:01]}  a6 {[%clk 0:03:02]} 4. c3 {[%clk 0:02:59]}  b5 {[%clk 0:02:25]} 5. Bd5 {[%clk 0:02:48]}  Nf6 {[%clk 0:02:25]} 6. O-O {[%clk 0:02:41]}  Bb7 {[%clk 0:01:41]} 7. d4 {[%clk 0:02:38]}  exd4 {[%clk 0:01:38]} 8. Nxd4 {[%clk 0:02:24]}  Nxd5 {[%clk 0:01:18]} 9. exd5 {[%clk 0:02:24]}  Nxd4 {[%clk 0:01:19]} 10. Qxd4 {[%clk 0:02:22]}  Qf6 {[%clk 0:01:10]} 11. Re1+ {[%clk 0:02:08]}  Kd8 {[%clk 0:01:11]} 12. Qd3 {[%clk 0:01:49]}  Bc5 {[%clk 0:01:01]} 13. Be3 {[%clk 0:01:38]}  Re8 {[%clk 0:00:58]} 14. Nd2 {[%clk 0:01:36]}  Bxe3 {[%clk 0:00:58]} 15. fxe3 {[%clk 0:01:35]}  c6 {[%clk 0:00:22]} 16. a4 {[%clk 0:01:18]}  Qg6 {[%clk 0:00:18]} 17. Qd4 {[%clk 0:01:15]}  Kc7 {[%clk 0:00:08]} 18. axb5 {[%clk 0:01:03]}  axb5 {[%clk 0:00:09]} 19. Rxa8 {[%clk 0:01:00]}  Rxa8 {[%clk 0:00:10]} 20. Ne4 {[%clk 0:00:55]}  cxd5 {[%clk 0:00:09]} 21. Nc5 {[%clk 0:00:54]}  Bc6 {[%clk 0:00:10]} 22. Rf1 {[%clk 0:00:40]}  f6 {[%clk 0:00:10]} 23. Qf4+ {[%clk 0:00:29]}  Kc8 {[%clk 0:00:10]} 24. g3 {[%clk 0:00:11]}  Ra2 {[%clk 0:00:08]} 25. Qf2 {[%clk 0:00:08]}  Qg5 {[%clk 0:00:07]} 26. Nd3 {[%clk 0:00:08]}  h5 {[%clk 0:00:05]} 27. Nb4 {[%clk 0:00:08]}  Ra8 {[%clk 0:00:05]} 28. Qf4 {[%clk 0:00:07]}  Kb7 {[%clk 0:00:05]} 29. Qxg5 {[%clk 0:00:07]}  fxg5 {[%clk 0:00:05]} 30. Rf7 {[%clk 0:00:07]}  Ra1+ {[%clk 0:00:03]} 31. Kf2 {[%clk 0:00:07]}  Rb1 {[%clk 0:00:04]} 32. Nd3 {[%clk 0:00:08]}  b4 {[%clk 0:00:03]} 33. cxb4 {[%clk 0:00:07]}  Bb5 {[%clk 0:00:04]} 34. Nc5+ {[%clk 0:00:07]}  Kc6 {[%clk 0:00:04]} 35. Nxd7 {[%clk 0:00:07]}  Rxb2+ {[%clk 0:00:04]} 36. Kg1 {[%clk 0:00:07]}  Rb1+ {[%clk 0:00:04]} 37. Kg2 {[%clk 0:00:08]}  Rb2+ {[%clk 0:00:04]} 38. Kg1 {[%clk 0:00:08]}  Rxb4 {[%clk 0:00:04]} 39. Rxg7 {[%clk 0:00:07]}  Kd6 {[%clk 0:00:04]} 40. Nf6 {[%clk 0:00:07]}  Rb1+ {[%clk 0:00:05]} 41. Kg2 {[%clk 0:00:06]}  Rb2+ {[%clk 0:00:03]} 42. Kg1 {[%clk 0:00:07]}  Rb1+ {[%clk 0:00:04]} 43. Kg2 {[%clk 0:00:07]}  Rb2+ {[%clk 0:00:03]} 44. Kg1 {[%clk 0:00:08]}  Rb1+ {[%clk 0:00:04]} 1/2-1/2


[Site "https://www.chess.com"]

[Event "Titled Tuesday Blitz April 12 Late 2022"]
[White "Lewtak, Damian"]
[Black "Mickiewicz, Piotr"]
[WhiteFideId "1141724"]
[BlackFideId "1114891"]
[WhiteElo "2362"]
[BlackElo "2266"]
[Result "0-1"]
[Round "10"]
[TimeControl "180+1"]
[Date "2022.04.13"]
[WhiteClock "0:00:15"]
[BlackClock "0:00:01"]

1. d4 {[%clk 0:03:00]}  Nf6 {[%clk 0:02:58]} 2. Nf3 {[%clk 0:03:01]}  e6 {[%clk 0:02:56]} 3. c3 {[%clk 0:03:01]}  b6 {[%clk 0:02:56]} 4. Bg5 {[%clk 0:03:00]}  Bb7 {[%clk 0:02:56]} 5. Nbd2 {[%clk 0:03:01]}  Be7 {[%clk 0:02:56]} 6. e3 {[%clk 0:03:00]}  d6 {[%clk 0:02:54]} 7. Bd3 {[%clk 0:03:01]}  Nbd7 {[%clk 0:02:53]} 8. O-O {[%clk 0:03:01]}  h6 {[%clk 0:02:53]} 9. Bh4 {[%clk 0:03:01]}  Nh5 {[%clk 0:02:51]} 10. Bxe7 {[%clk 0:02:58]}  Qxe7 {[%clk 0:02:51]} 11. Re1 {[%clk 0:02:57]}  O-O {[%clk 0:02:46]} 12. Ne5 {[%clk 0:02:53]}  Nhf6 {[%clk 0:02:39]} 13. Nxd7 {[%clk 0:02:52]}  Nxd7 {[%clk 0:02:14]} 14. a4 {[%clk 0:02:51]}  a6 {[%clk 0:02:13]} 15. a5 {[%clk 0:02:50]}  b5 {[%clk 0:02:11]} 16. Qc2 {[%clk 0:02:48]}  c5 {[%clk 0:02:09]} 17. b4 {[%clk 0:02:45]}  cxb4 {[%clk 0:02:07]} 18. cxb4 {[%clk 0:02:44]}  Rfc8 {[%clk 0:02:08]} 19. Qb1 {[%clk 0:02:44]}  Rc3 {[%clk 0:02:02]} 20. Be4 {[%clk 0:02:39]}  d5 {[%clk 0:01:58]} 21. Bf3 {[%clk 0:02:38]}  Rac8 {[%clk 0:01:58]} 22. Ra2 {[%clk 0:02:26]}  Nf6 {[%clk 0:01:53]} 23. Rb2 {[%clk 0:02:24]}  Qc7 {[%clk 0:01:48]} 24. g3 {[%clk 0:02:18]}  Qd6 {[%clk 0:01:43]} 25. Nb3 {[%clk 0:02:15]}  Ne4 {[%clk 0:00:51]} 26. Bxe4 {[%clk 0:02:10]}  dxe4 {[%clk 0:00:50]} 27. Nc5 {[%clk 0:02:10]}  Ba8 {[%clk 0:00:34]} 28. Rc1 {[%clk 0:02:05]}  Rxc1+ {[%clk 0:00:32]} 29. Qxc1 {[%clk 0:02:06]}  Bd5 {[%clk 0:00:27]} 30. Rc2 {[%clk 0:02:03]}  Rc6 {[%clk 0:00:25]} 31. Qb1 {[%clk 0:01:37]}  f5 {[%clk 0:00:25]} 32. Nb7 {[%clk 0:01:34]}  Qc7 {[%clk 0:00:21]} 33. Rxc6 {[%clk 0:01:33]}  Qxc6 {[%clk 0:00:22]} 34. Nc5 {[%clk 0:01:34]}  Bc4 {[%clk 0:00:21]} 35. Qd1 {[%clk 0:01:30]}  Bd5 {[%clk 0:00:21]} 36. Qh5 {[%clk 0:01:29]}  Kh7 {[%clk 0:00:15]} 37. Qf7 {[%clk 0:01:28]}  Qd6 {[%clk 0:00:13]} 38. Nd7 {[%clk 0:00:54]}  Kh8 {[%clk 0:00:03]} 39. Qe8+ {[%clk 0:00:51]}  Kh7 {[%clk 0:00:04]} 40. Nf8+ {[%clk 0:00:51]}  Kg8 {[%clk 0:00:04]} 41. Nxe6+ {[%clk 0:00:50]}  Kh7 {[%clk 0:00:04]} 42. Nc5 {[%clk 0:00:41]}  Bc4 {[%clk 0:00:04]} 43. Qe5 {[%clk 0:00:37]}  Qg6 {[%clk 0:00:03]} 44. Qf4 {[%clk 0:00:25]}  Qh5 {[%clk 0:00:04]} 45. g4 {[%clk 0:00:25]}  Qh4 {[%clk 0:00:04]} 46. gxf5 {[%clk 0:00:21]}  Qh3 {[%clk 0:00:02]} 47. Qxh6+ {[%clk 0:00:14]}  Kxh6 {[%clk 0:00:02]} 48. Nd3 {[%clk 0:00:15]}  Bxd3 {[%clk 0:00:01]} 49. f3 {[%clk 0:00:15]}  Qf1# {[%clk 0:00:01]} 0-1


[Site "https://www.chess.com"]

[Event "Titled Tuesday Blitz April 12 Late 2022"]
[White "Minko, Dmitry"]
[Black "Sokolovsky, Yahli"]
[WhiteFideId "24188468"]
[BlackFideId "2820242"]
[WhiteElo "1928"]
[BlackElo "1770"]
[Result "0-1"]
[Round "10"]
[TimeControl "180+1"]
[Date "2022.04.12"]
[WhiteClock "0:00:03"]
[BlackClock "0:00:09"]

1. e4 {[%clk 0:03:00]}  g6 {[%clk 0:02:59]} 2. d4 {[%clk 0:03:00]}  Bg7 {[%clk 0:02:59]} 3. Nc3 {[%clk 0:03:01]}  d6 {[%clk 0:03:00]} 4. f4 {[%clk 0:03:00]}  a6 {[%clk 0:02:56]} 5. Nf3 {[%clk 0:02:59]}  b5 {[%clk 0:02:56]} 6. Bd3 {[%clk 0:02:46]}  Bb7 {[%clk 0:02:56]} 7. e5 {[%clk 0:02:42]}  e6 {[%clk 0:02:54]} 8. Be4 {[%clk 0:02:38]}  d5 {[%clk 0:02:55]} 9. Bd3 {[%clk 0:02:38]}  Ne7 {[%clk 0:02:53]} 10. Be3 {[%clk 0:02:34]}  h5 {[%clk 0:02:52]} 11. O-O {[%clk 0:02:31]}  Nd7 {[%clk 0:02:51]} 12. a4 {[%clk 0:02:22]}  b4 {[%clk 0:02:51]} 13. Ne2 {[%clk 0:02:22]}  a5 {[%clk 0:02:49]} 14. Bf2 {[%clk 0:02:17]}  Nf5 {[%clk 0:02:48]} 15. c3 {[%clk 0:02:12]}  Bf8 {[%clk 0:02:48]} 16. cxb4 {[%clk 0:01:56]}  Bxb4 {[%clk 0:02:48]} 17. Nc3 {[%clk 0:01:56]}  c5 {[%clk 0:02:39]} 18. Nb5 {[%clk 0:01:50]}  c4 {[%clk 0:02:27]} 19. Bxf5 {[%clk 0:01:50]}  gxf5 {[%clk 0:02:26]} 20. Bh4 {[%clk 0:01:44]}  Qb6 {[%clk 0:02:23]} 21. Kh1 {[%clk 0:01:32]}  Ba6 {[%clk 0:02:17]} 22. Nd6+ {[%clk 0:01:30]}  Bxd6 {[%clk 0:02:16]} 23. exd6 {[%clk 0:01:31]}  c3 {[%clk 0:02:06]} 24. Rf2 {[%clk 0:01:31]}  cxb2 {[%clk 0:02:01]} 25. Rb1 {[%clk 0:01:31]}  Qxd6 {[%clk 0:01:57]} 26. Ne5 {[%clk 0:01:31]}  Rb8 {[%clk 0:01:38]} 27. Rfxb2 {[%clk 0:01:30]}  Rxb2 {[%clk 0:01:37]} 28. Rxb2 {[%clk 0:01:31]}  Nxe5 {[%clk 0:01:28]} 29. fxe5 {[%clk 0:01:28]}  Qc7 {[%clk 0:01:28]} 30. Rc2 {[%clk 0:01:23]}  Qb6 {[%clk 0:01:24]} 31. Bf6 {[%clk 0:01:03]}  Rg8 {[%clk 0:01:23]} 32. Qc1 {[%clk 0:01:03]}  Kd7 {[%clk 0:01:10]} 33. h3 {[%clk 0:00:53]}  Rb8 {[%clk 0:00:54]} 34. Qd1 {[%clk 0:00:39]}  Qb3 {[%clk 0:00:45]} 35. Kh2 {[%clk 0:00:24]}  Bd3 {[%clk 0:00:41]} 36. Qxh5 {[%clk 0:00:09]}  Qxc2 {[%clk 0:00:18]} 37. Qxf7+ {[%clk 0:00:10]}  Kc6 {[%clk 0:00:19]} 38. Qxe6+ {[%clk 0:00:10]}  Kb7 {[%clk 0:00:19]} 39. Qxd5+ {[%clk 0:00:11]}  Qc6 {[%clk 0:00:20]} 40. Qxa5 {[%clk 0:00:10]}  Be4 {[%clk 0:00:17]} 41. Qb4+ {[%clk 0:00:08]}  Qb6 {[%clk 0:00:18]} 42. Qe7+ {[%clk 0:00:07]}  Qc7 {[%clk 0:00:19]} 43. Qb4+ {[%clk 0:00:07]}  Ka7 {[%clk 0:00:19]} 44. Qd2 {[%clk 0:00:06]}  Qc6 {[%clk 0:00:19]} 45. Qf2 {[%clk 0:00:04]}  Qd5 {[%clk 0:00:15]} 46. g4 {[%clk 0:00:04]}  fxg4 {[%clk 0:00:15]} 47. hxg4 {[%clk 0:00:05]}  Rb4 {[%clk 0:00:12]} 48. g5 {[%clk 0:00:03]}  Qxd4 {[%clk 0:00:11]} 49. Qf1 {[%clk 0:00:01]}  Rb2+ {[%clk 0:00:10]} 50. Kg3 {[%clk 0:00:02]}  Qe3+ {[%clk 0:00:10]} 51. Kh4 {[%clk 0:00:02]}  Rh2+ {[%clk 0:00:10]} 52. Kg4 {[%clk 0:00:03]}  Rg2+ {[%clk 0:00:09]} 53. Kh5 {[%clk 0:00:03]}  Qh3# {[%clk 0:00:09]} 0-1


[Site "https://www.chess.com"]

[Event "Titled Tuesday Blitz April 12 Late 2022"]
[White "Nazaretyan, Tigran"]
[Black "Vasquez Schroeder, Rodrigo"]
[WhiteFideId "24162345"]
[BlackFideId "3400042"]
[WhiteElo "2225"]
[BlackElo "2561"]
[Result "0-1"]
[Round "10"]
[TimeControl "180+1"]
[Date "2022.04.12"]
[WhiteClock "0:00:02"]
[BlackClock "0:00:12"]

1. d4 {[%clk 0:02:59]}  Nf6 {[%clk 0:02:59]} 2. c4 {[%clk 0:02:59]}  e6 {[%clk 0:02:59]} 3. Nf3 {[%clk 0:02:59]}  Bb4+ {[%clk 0:02:58]} 4. Bd2 {[%clk 0:02:59]}  c5 {[%clk 0:02:58]} 5. Bxb4 {[%clk 0:02:58]}  cxb4 {[%clk 0:02:59]} 6. g3 {[%clk 0:02:52]}  b6 {[%clk 0:02:58]} 7. Bg2 {[%clk 0:02:51]}  Bb7 {[%clk 0:02:58]} 8. O-O {[%clk 0:02:51]}  a5 {[%clk 0:02:59]} 9. a3 {[%clk 0:02:49]}  Na6 {[%clk 0:02:58]} 10. Qb3 {[%clk 0:02:37]}  O-O {[%clk 0:02:55]} 11. Nbd2 {[%clk 0:02:35]}  d6 {[%clk 0:02:50]} 12. Rfd1 {[%clk 0:02:29]}  Qc7 {[%clk 0:02:48]} 13. Rac1 {[%clk 0:02:27]}  Rac8 {[%clk 0:02:46]} 14. Ne1 {[%clk 0:02:27]}  e5 {[%clk 0:02:41]} 15. e3 {[%clk 0:02:22]}  Rfe8 {[%clk 0:02:38]} 16. Nc2 {[%clk 0:02:07]}  Bxg2 {[%clk 0:02:33]} 17. Kxg2 {[%clk 0:02:07]}  Qb7+ {[%clk 0:02:18]} 18. Kg1 {[%clk 0:02:06]}  exd4 {[%clk 0:02:14]} 19. exd4 {[%clk 0:01:46]}  b5 {[%clk 0:01:55]} 20. axb4 {[%clk 0:01:33]}  axb4 {[%clk 0:01:54]} 21. cxb5 {[%clk 0:01:17]}  Qxb5 {[%clk 0:01:52]} 22. Ne3 {[%clk 0:01:16]}  d5 {[%clk 0:01:40]} 23. Nf3 {[%clk 0:01:08]}  g6 {[%clk 0:01:34]} 24. Ne5 {[%clk 0:01:07]}  Kg7 {[%clk 0:01:31]} 25. Ra1 {[%clk 0:00:57]}  Nc7 {[%clk 0:01:19]} 26. Ra7 {[%clk 0:00:54]}  Rf8 {[%clk 0:01:16]} 27. Rda1 {[%clk 0:00:43]}  Ne6 {[%clk 0:01:13]} 28. Nf3 {[%clk 0:00:35]}  Qe2 {[%clk 0:01:06]} 29. Nxd5 {[%clk 0:00:27]}  Nxd5 {[%clk 0:01:06]} 30. Qxd5 {[%clk 0:00:26]}  Rc2 {[%clk 0:01:06]} 31. Qe5+ {[%clk 0:00:26]}  Qxe5 {[%clk 0:01:06]} 32. Nxe5 {[%clk 0:00:25]}  Nxd4 {[%clk 0:01:04]} 33. Rd1 {[%clk 0:00:21]}  Nb5 {[%clk 0:00:37]} 34. Rb7 {[%clk 0:00:20]}  Nc7 {[%clk 0:00:27]} 35. Rd7 {[%clk 0:00:18]}  Ne6 {[%clk 0:00:28]} 36. Nxf7 {[%clk 0:00:17]}  Nc5 {[%clk 0:00:25]} 37. Ne5+ {[%clk 0:00:11]}  Nxd7 {[%clk 0:00:25]} 38. Rxd7+ {[%clk 0:00:10]}  Kg8 {[%clk 0:00:25]} 39. Ng4 {[%clk 0:00:09]}  h5 {[%clk 0:00:19]} 40. Nh6+ {[%clk 0:00:07]}  Kh8 {[%clk 0:00:19]} 41. Nf7+ {[%clk 0:00:07]}  Kg7 {[%clk 0:00:20]} 42. Ng5+ {[%clk 0:00:05]}  Kg8 {[%clk 0:00:19]} 43. f4 {[%clk 0:00:05]}  Re8 {[%clk 0:00:17]} 44. Kf1 {[%clk 0:00:03]}  Ree2 {[%clk 0:00:17]} 45. Rd8+ {[%clk 0:00:02]}  Kg7 {[%clk 0:00:18]} 46. Rd7+ {[%clk 0:00:02]}  Kf8 {[%clk 0:00:12]} 0-1


[Site "https://www.chess.com"]

[Event "Titled Tuesday Blitz April 12 Late 2022"]
[White "O`Gorman, Tom"]
[Black "Gharibyan, Mamikon"]
[WhiteFideId "2508249"]
[BlackFideId "13308300"]
[WhiteElo "2247"]
[BlackElo "2254"]
[Result "0-1"]
[Round "10"]
[TimeControl "180+1"]
[Date "2022.04.12"]
[WhiteClock "0:01:28"]
[BlackClock "0:01:31"]

1. Nf3 {[%clk 0:03:00]}  d5 {[%clk 0:02:56]} 2. e3 {[%clk 0:02:59]}  g6 {[%clk 0:02:54]} 3. c4 {[%clk 0:02:59]}  c6 {[%clk 0:02:50]} 4. Nc3 {[%clk 0:03:00]}  Bg7 {[%clk 0:02:50]} 5. d4 {[%clk 0:03:00]}  Nf6 {[%clk 0:02:50]} 6. Be2 {[%clk 0:02:58]}  O-O {[%clk 0:02:49]} 7. O-O {[%clk 0:02:58]}  Nbd7 {[%clk 0:02:49]} 8. b4 {[%clk 0:02:57]}  dxc4 {[%clk 0:02:48]} 9. Bxc4 {[%clk 0:02:56]}  b5 {[%clk 0:02:23]} 10. Be2 {[%clk 0:02:49]}  a5 {[%clk 0:02:22]} 11. bxa5 {[%clk 0:02:48]}  Qxa5 {[%clk 0:02:14]} 12. Bd2 {[%clk 0:02:45]}  b4 {[%clk 0:02:14]} 13. Nb1 {[%clk 0:02:41]}  Ne4 {[%clk 0:02:08]} 14. Be1 {[%clk 0:02:40]}  c5 {[%clk 0:02:06]} 15. Nbd2 {[%clk 0:02:35]}  Nc3 {[%clk 0:02:04]} 16. Nb3 {[%clk 0:02:29]}  Nxe2+ {[%clk 0:01:55]} 17. Qxe2 {[%clk 0:02:28]}  Ba6 {[%clk 0:01:55]} 18. Nxa5 {[%clk 0:02:11]}  Bxe2 {[%clk 0:01:53]} 19. Nc6 {[%clk 0:02:12]}  Rfe8 {[%clk 0:01:44]} 20. Rc1 {[%clk 0:02:00]}  Bb5 {[%clk 0:01:39]} 21. dxc5 {[%clk 0:01:29]}  Bxc6 {[%clk 0:01:35]} 22. Bxb4 {[%clk 0:01:28]}  Rxa2 {[%clk 0:01:35]} 23. Rfd1 {[%clk 0:01:28]}  Rc8 {[%clk 0:01:31]} 0-1


[Site "https://www.chess.com"]